fUST/lending_fUST_20250702
["ID","MTS","AMOUNT","RATE_DAILY","PERIOD"]
[368956209,1751410241775,-489.9,0.00019172,2]
[368956211,1751410241785,-460.0,0.00019172,2]
[368956213,1751410241794,-581.48,0.00019172,2]
[368956215,1751410241803,-460.0,0.00019173,2]
[368956217,1751410241813,-460.0,0.00019173,2]
[368956219,1751410241822,-535.23,0.00019173,2]
[368956221,1751410241832,-460.0,0.00019173,2]
[368956223,1751410241841,-460.0,0.00019173,2]
[368956225,1751410241850,-460.0,0.00019174,2]
[368956227,1751410241859,-460.0,0.00019174,2]
[368956229,1751410241868,-460.0,0.00019174,2]
[368956231,1751410241877,-460.0,0.00019174,2]
[368956233,1751410241886,-460.0,0.00019174,2]
[368956235,1751410241896,-460.0,0.00019174,2]
[368956237,1751410241905,-784.92,0.00019174,2]
[368956239,1751410241914,-673.44,0.00019174,2]
[368956240,1751410241923,-460.0,0.00019174,2]
[368956241,1751410241932,-460.0,0.00019174,2]
[368956242,1751410241941,-460.0,0.00019174,2]
[368956243,1751410241950,-173.345534,0.00019178,2]
[368956244,1751410241959,-151.0,0.00019329,2]
[368956245,1751410241969,-151.0,0.00019329,2]
[368956246,1751410241978,-151.0,0.00019329,2]
[368956247,1751410241987,-151.0,0.00019329,2]
[368956248,1751410241996,-151.0,0.00019329,2]
[368956249,1751410242005,-151.0,0.00019329,2]
[368956250,1751410242016,-151.0,0.00019329,2]
[368956251,1751410242025,-182.136929,0.00019329,2]
[368956252,1751410242035,-151.0,0.00019329,2]
[368956253,1751410242044,-151.0,0.00019329,2]
[368956254,1751410242053,-151.0,0.00019329,2]
[368956255,1751410242062,-174.08304,0.00019329,2]
[368956256,1751410242071,-164.821234,0.00019329,2]
[368956257,1751410242080,-151.0,0.00019329,2]
[368956258,1751410242089,-151.0,0.00019329,2]
[368956259,1751410242098,-151.0,0.00019329,2]
[368956260,1751410242107,-151.0,0.00019329,2]
[368956261,1751410242117,-151.0,0.00019329,2]
[368956263,1751410242126,-151.0,0.00019329,2]
[368956265,1751410242135,-151.0,0.00019329,2]
[368956267,1751410242148,-151.0,0.00019329,2]
[368956269,1751410242157,-300.168608,0.00019329,2]
[368956271,1751410242166,-151.0,0.00019329,2]
[368956273,1751410242176,-151.0,0.00019329,2]
[368956275,1751410242186,-300.168608,0.00019329,2]
[368956277,1751410242195,-151.0,0.00019329,2]
[368956279,1751410242204,-151.0,0.00019329,2]
[368956282,1751410242213,-151.0,0.00019329,2]
[368956284,1751410242224,-151.0,0.00019329,2]
[368956286,1751410242233,-151.0,0.00019329,2]
[368956288,1751410242243,-151.0,0.00019329,2]
[368956290,1751410242252,-151.0,0.00019329,2]
[368956292,1751410242261,-151.0,0.00019329,2]
[368956294,1751410242270,-151.0,0.00019329,2]
[368956296,1751410242280,-164.395067,0.00019329,2]
[368956298,1751410242289,-164.395067,0.00019329,2]
[368956300,1751410242299,-189.989058,0.00019329,2]
[368956302,1751410242308,-151.0,0.00019329,2]
[368956304,1751410242317,-279.896286,0.00019329,2]
[368956306,1751410242327,-279.896286,0.00019329,2]
[368956308,1751410242336,-151.0,0.00019329,2]
[368956310,1751410242345,-151.0,0.00019329,2]
[368956312,1751410242355,-151.0,0.00019329,2]
[368956314,1751410242364,-100000.0,0.00019329,2]
[368956316,1751410242373,-460.0,0.00019446,2]
[368956318,1751410242382,-489.9,0.00019446,2]
[368956320,1751410242392,-460.0,0.00019446,2]
[368956322,1751410242402,-581.48,0.00019446,2]
[368956324,1751410242411,-460.0,0.00019447,2]
[368956327,1751410242422,-460.0,0.00019447,2]
[368956329,1751410242431,-535.23,0.00019447,2]
[368956331,1751410242441,-460.0,0.00019447,2]
[368956333,1751410242450,-460.0,0.00019447,2]
[368956335,1751410242459,-460.0,0.00019448,2]
[368956337,1751410242470,-477.74821162,0.00019448,2]
[368956339,1751410242482,-460.0,0.00019448,2]
[368956341,1751410242491,-460.0,0.00019448,2]
[368956344,1751410242501,-543.04,0.00019448,2]
[368956346,1751410242511,-460.0,0.00019448,2]
[368956348,1751410242520,-784.92,0.00019448,2]
[368956350,1751410242530,-673.44,0.00019448,2]
[368956353,1751410242540,-460.0,0.00019448,2]
[368956355,1751410242550,-460.0,0.00019448,2]
[368956357,1751410242559,-460.0,0.00019448,2]
[368956359,1751410242568,-912.64832217,0.00019478,2]
[368956361,1751410242577,-206.86720958,0.00019584,2]
[368956363,1751410242587,-460.0,0.0001972,2]
[368956365,1751410242596,-489.9,0.0001972,2]
[368956367,1751410242606,-460.0,0.0001972,2]
[368956369,1751410242616,-581.48,0.0001972,2]
[368956371,1751410242626,-460.0,0.00019721,2]
[368956373,1751410242636,-460.0,0.00019721,2]
[368956375,1751410242645,-535.23,0.00019721,2]
[368956377,1751410242655,-460.0,0.00019721,2]
[368956379,1751410242664,-460.0,0.00019721,2]
[368956381,1751410242674,-460.0,0.00019722,2]
[368956383,1751410242684,-460.0,0.00019722,2]
[368956385,1751410242693,-460.0,0.00019722,2]
[368956387,1751410242703,-460.0,0.00019722,2]
[368956389,1751410242713,-784.92,0.00019722,2]
[368956391,1751410242722,-673.44,0.00019722,2]
[368956393,1751410242731,-460.0,0.00019722,2]
[368956406,1751410242837,-460.0,0.00019722,2]
[368956408,1751410242846,-460.0,0.00019722,2]
[368956410,1751410242856,-460.0,0.00019994,2]
[368956412,1751410242865,-489.9,0.00019994,2]
[368956414,1751410242874,-460.0,0.00019994,2]
[368956416,1751410242883,-581.48,0.00019994,2]
[368956418,1751410242893,-460.0,0.00019995,2]
[368956420,1751410242902,-460.0,0.00019995,2]
[368956422,1751410242911,-535.23,0.00019995,2]
[368956424,1751410242921,-460.0,0.00019995,2]
[368956426,1751410242930,-460.0,0.00019995,2]
[368956428,1751410242939,-460.0,0.00019996,2]
[368956430,1751410242949,-460.0,0.00019996,2]
[368956432,1751410242958,-489.8,0.00019996,2]
[368956434,1751410242968,-460.0,0.00019996,2]
[368956436,1751410242978,-784.92,0.00019996,2]
[368956438,1751410242987,-673.44,0.00019996,2]
[368956440,1751410242996,-460.0,0.00019996,2]
[368956442,1751410243006,-411.62,0.00019996,2]
[368956444,1751410243016,-460.0,0.00019996,2]
[368956446,1751410243025,-206.86720958,0.00020005,2]
[368956448,1751410243034,-460.0,0.00020268,2]
[368956450,1751410243043,-489.9,0.00020268,2]
[368956452,1751410243052,-460.0,0.00020268,2]
[368956454,1751410243062,-581.48,0.00020268,2]
[368956456,1751410243071,-460.0,0.00020269,2]
[368956458,1751410243080,-460.0,0.00020269,2]
[368956460,1751410243090,-535.23,0.00020269,2]
[368956462,1751410243099,-460.0,0.00020269,2]
[368956464,1751410243108,-460.0,0.00020269,2]
[368956465,1751410243117,-440.56,0.0002027,2]
[368956468,1751410243126,-460.0,0.0002027,2]
[368956469,1751410243137,-460.0,0.0002027,2]
[368956471,1751410243148,-784.92,0.0002027,2]
[368956473,1751410243158,-673.44,0.0002027,2]
[368956475,1751410243167,-460.0,0.0002027,2]
[368956477,1751410243176,-460.0,0.0002027,2]
[368956479,1751410243186,-159.67165885,0.00020318,2]
[368956481,1751410243195,-206.86720958,0.00020426,3]
[368956483,1751410243205,-460.0,0.00020542,2]
[368956486,1751410243215,-489.9,0.00020542,2]
[368956488,1751410243225,-460.0,0.00020542,2]
[368956490,1751410243235,-581.48,0.00020542,2]
[368956492,1751410243244,-460.0,0.00020543,2]
[368956494,1751410243255,-460.0,0.00020543,2]
[368956496,1751410243264,-535.23,0.00020543,2]
[368956498,1751410243273,-390.12,0.00020543,2]
[368956500,1751410243283,-460.0,0.00020543,2]
[368956502,1751410243292,-460.0,0.00020544,2]
[368956504,1751410243302,-460.0,0.00020544,2]
[368956506,1751410243312,-784.92,0.00020544,2]
[368956508,1751410243321,-673.44,0.00020544,2]
[368956510,1751410243331,-460.0,0.00020544,2]
[368956512,1751410243340,-507.24,0.00020544,2]
[368956514,1751410243350,-280.167,0.00020631,2]
[368956516,1751410243360,-601.16,0.000207,2]
[368956518,1751410243369,-460.0,0.00020816,2]
[368956520,1751410243378,-489.9,0.00020816,2]
[368956522,1751410243388,-460.0,0.00020816,2]
[368956524,1751410243397,-581.48,0.00020816,2]
[368956526,1751410243406,-460.0,0.00020817,2]
[368956528,1751410243416,-460.0,0.00020817,2]
[368956530,1751410243425,-535.23,0.00020817,2]
[368956532,1751410243435,-460.0,0.00020817,2]
[368956534,1751410243444,-460.0,0.00020818,2]
[368956536,1751410243454,-460.0,0.00020818,2]
[368956538,1751410243464,-784.92,0.00020818,2]
[368956540,1751410243473,-673.44,0.00020818,2]
[368956542,1751410243483,-460.0,0.00020818,2]
[368956544,1751410243492,-206.86720958,0.00020847,4]
[368956546,1751410243502,-460.0,0.0002109,2]
[368956548,1751410243511,-489.9,0.0002109,2]
[368956550,1751410243521,-460.0,0.0002109,2]
[368956552,1751410243531,-581.48,0.0002109,2]
[368956554,1751410243540,-460.0,0.00021091,2]
[368956557,1751410243551,-460.0,0.00021091,2]
[368956559,1751410243560,-535.23,0.00021091,2]
[368956561,1751410243570,-407.75,0.00021091,2]
[368956563,1751410243580,-460.0,0.00021092,2]
[368956565,1751410243589,-460.0,0.00021092,2]
[368956567,1751410243600,-784.92,0.00021092,2]
[368956569,1751410243609,-673.44,0.00021092,2]
[368956571,1751410243618,-254.98,0.00021092,2]
[368956573,1751410243627,-912.64832217,0.00021252,2]
[368956575,1751410243636,-206.86720958,0.00021268,4]
[368956577,1751410243645,-460.0,0.00021364,2]
[368956578,1751410243654,-489.9,0.00021364,2]
[368956581,1751410243663,-460.0,0.00021364,2]
[368956583,1751410243673,-460.0,0.00021365,2]
[368956585,1751410243683,-460.0,0.00021365,2]
[368956587,1751410243692,-535.23,0.00021365,2]
[368956589,1751410243702,-460.0,0.00021366,2]
[368956591,1751410243711,-344.94,0.00021366,2]
[368956593,1751410243720,-784.92,0.00021366,2]
[368956595,1751410243730,-673.44,0.00021366,2]
[368956597,1751410243739,-207.4,0.00021549,2]
[368956599,1751410243749,-5000.0,0.00021549,2]
[368956601,1751410243759,-356.30818343,0.00021549,2]
[368956615,1751410243881,-143.69181657,0.00021549,2]
[368956617,1751410243891,-690.642,0.00021549,2]
[368956619,1751410243901,-716.195754,0.00021604,2]
[368956621,1751410243910,-460.0,0.00021638,2]
[368956623,1751410243920,-489.9,0.00021638,2]
[368956625,1751410243930,-460.0,0.00021638,2]
[368956627,1751410243940,-460.0,0.00021639,2]
[368956629,1751410243950,-460.0,0.00021639,2]
[368956631,1751410243960,-535.23,0.00021639,2]
[368956633,1751410243970,-460.0,0.0002164,2]
[368956635,1751410243979,-784.92,0.0002164,2]
[368956638,1751410243990,-673.44,0.0002164,2]
[368956640,1751410244000,-834.22422399,0.00021659,2]
[368956641,1751410244010,-206.86720958,0.00021689,5]
[368956644,1751410244020,-159.67165885,0.00021898,2]
[368956645,1751410244031,-460.0,0.00021912,2]
[368956648,1751410244043,-489.9,0.00021912,2]
[368956650,1751410244052,-460.0,0.00021912,2]
[368956652,1751410244063,-460.0,0.00021913,2]
[368956654,1751410244072,-460.0,0.00021913,2]
[368956656,1751410244082,-535.23,0.00021913,2]
[368956658,1751410244091,-460.0,0.00021914,2]
[368956660,1751410244100,-784.92,0.00021914,2]
[368956662,1751410244110,-673.44,0.00021914,2]
[368956664,1751410244120,-300.0,0.00021917,2]
[368956666,1751410244130,-151.0,0.00021955,7]
[368956668,1751410244142,-151.0,0.00021955,7]
[368956670,1751410244152,-151.0,0.00021955,7]
[368956672,1751410244161,-151.0,0.00021955,7]
[368956674,1751410244171,-151.0,0.00021955,7]
[368956676,1751410244181,-2365.94913893,0.00021973,2]
[368956678,1751410244190,-151.0,0.0002199,7]
[368956680,1751410244199,-680.89,0.00022,7]
[368956682,1751410244208,-4113.48767593,0.00022,7]
[368956696,1751410244329,-581.48,0.00021364,2]
[368956698,1751410244339,-200.628124,0.00021638,2]
[368956700,1751410244352,-380.851876,0.00021638,2]
[368956702,1751410244361,-581.48,0.00021912,2]
[368956704,1751410244371,-858.48232407,0.00022,7]
[368956706,1751410244380,-1375.86490744,0.00022,2]
[368956708,1751410244391,-1500.58988188,0.00022,2]
[368956710,1751410244403,-3194.75259197,0.00022,2]
[368956713,1751410244414,-5816.74472388,0.00022,2]
[368956721,1751410244482,-674.7766775,0.00022,2]
[368956724,1751410244499,-176.27061953,0.00018899,2]
[368956726,1751410244508,-131.72938047,0.00022,2]
[368956881,1751410245960,-353.03183686,0.00022,2]
[368956883,1751410245970,-151.0,0.00022,7]
[368956885,1751410245980,-151.0,0.00022,7]
[368956887,1751410245989,-151.0,0.00022,7]
[368956889,1751410245999,-151.0,0.00022,7]
[368956891,1751410246009,-151.0,0.00022,7]
[368956893,1751410246018,-151.0,0.00022,7]
[368956895,1751410246027,-151.0,0.00022,7]
[368956897,1751410246036,-151.0,0.00022,7]
[368956898,1751410246046,-151.0,0.00022,7]
[368956899,1751410246055,-151.0,0.00022,7]
[368956900,1751410246064,-300.168608,0.00022,7]
[368956901,1751410246074,-300.168608,0.00022,7]
[368956902,1751410246083,-151.0,0.00022,7]
[368956903,1751410246093,-151.0,0.00022,7]
[368956904,1751410246103,-151.0,0.00022,7]
[368956905,1751410246112,-96.2945551,0.00022,7]
[368956906,1751410246124,-54.7054449,0.00022,7]
[368956907,1751410246134,-151.0,0.00022,7]
[368956908,1751410246146,-151.0,0.00022,7]
[368956909,1751410246156,-211.0,0.00022077,2]
[368956910,1751410246165,-206.86720958,0.00022111,6]
[368956911,1751410246174,-460.0,0.00022186,2]
[368956912,1751410246184,-489.9,0.00022186,2]
[368956913,1751410246193,-460.0,0.00022186,2]
[368956914,1751410246203,-581.48,0.00022186,2]
[368956915,1751410246212,-460.0,0.00022187,2]
[368956916,1751410246222,-535.23,0.00022187,2]
[368956918,1751410246232,-151.0,0.00022187,7]
[368956931,1751410246340,-151.0,0.00022187,7]
[368956933,1751410246351,-263.331457,0.00022188,7]
[368956935,1751410246360,-460.0,0.00022188,2]
[368956937,1751410246370,-164.395067,0.00022188,7]
[368956939,1751410246379,-164.395067,0.00022188,7]
[368956941,1751410246388,-784.92,0.00022188,2]
[368956943,1751410246398,-673.44,0.00022188,2]
[368956945,1751410246407,-279.896286,0.00022188,7]
[368956947,1751410246416,-279.896286,0.00022188,7]
[368956949,1751410246425,-427.27,0.0002246,2]
[368956951,1751410246435,-489.9,0.0002246,2]
[368956953,1751410246444,-460.0,0.0002246,2]
[368956955,1751410246453,-581.48,0.0002246,2]
[368956957,1751410246462,-18685.84604477,0.00022461,2]
[368956959,1751410246472,-460.0,0.00022461,2]
[368956961,1751410246481,-535.23,0.00022461,2]
[368956963,1751410246490,-1576.83935966,0.00022462,2]
[368956965,1751410246499,-587.36,0.00022462,2]
[368956966,1751410246508,-784.92,0.00022462,2]
[368956968,1751410246517,-673.44,0.00022462,2]
[368956970,1751410246527,-151.0,0.00022463,7]
[368956972,1751410246536,-151.0,0.00022463,7]
[368956974,1751410246545,-151.0,0.00022463,7]
[368956976,1751410246554,-151.0,0.00022463,7]
[368956978,1751410246564,-206.86720958,0.00022532,7]
[368956980,1751410246573,-211.0,0.00022555,2]
[368956982,1751410246583,-211.0,0.00022647,2]
[368956984,1751410246593,-211.0,0.00022724,2]
[368956986,1751410246602,-489.9,0.00022734,2]
[368956988,1751410246611,-460.0,0.00022734,2]
[368956990,1751410246621,-581.48,0.00022734,2]
[368956992,1751410246630,-460.0,0.00022735,2]
[368956995,1751410246641,-535.23,0.00022735,2]
[368956997,1751410246651,-151.0,0.00022735,7]
[368956998,1751410246660,-784.92,0.00022736,2]
[368957000,1751410246671,-673.44,0.00022736,2]
[368957003,1751410246680,-215.0738,0.00022918,2]
[368957004,1751410246689,-500.0,0.0002295,2]
[368957006,1751410246698,-206.86720958,0.00022953,8]
[368957008,1751410246708,-489.9,0.00023008,2]
[368957010,1751410246717,-529.41,0.00023008,2]
[368957012,1751410246726,-581.48,0.00023008,2]
[368957014,1751410246735,-460.0,0.00023009,2]
[368957016,1751410246744,-535.23,0.00023009,2]
[368957018,1751410246754,-784.92,0.0002301,2]
[368957020,1751410246763,-673.44,0.0002301,2]
[368957022,1751410246772,-912.64832217,0.00023026,2]
[368957024,1751410246782,-372.55224632,0.00023044,2]
[368957027,1751410246792,-489.9,0.00023282,2]
[368957029,1751410246802,-581.48,0.00023282,2]
[368957031,1751410246811,-460.0,0.00023283,2]
[368957033,1751410246820,-535.23,0.00023283,2]
[368957035,1751410246829,-784.92,0.00023284,2]
[368957037,1751410246838,-673.44,0.00023284,2]
[368957039,1751410246848,-206.86720958,0.00023374,9]
[368957041,1751410246856,-211.0,0.00023446,2]
[368957043,1751410246866,-159.67165885,0.00023479,2]
[368957044,1751410246875,-386.68,0.00023556,2]
[368957046,1751410246884,-535.41,0.00023556,2]
[368957049,1751410246894,-354.70988871,0.00023556,2]
[368958643,1751410463233,10000.0,0.00016518,2]
[368958644,1751410580789,162.207051,0.00013699,2]
[368958647,1751410622742,2194.0,0.00025143,120]
[368958648,1751410684409,359.4703468,0.00016299,2]
[368958649,1751410809585,1484.7382111,0.00016255,2]
[368958650,1751411002993,3771.69811528,0.00016253,2]
[368958651,1751411003017,20000.0,0.00016253,2]
[368958652,1751411003041,1128.30188472,0.00016253,2]
[368958653,1751411031276,5000.0,0.000171,2]
[368958654,1751411046658,5000.0,0.000171,2]
[368958655,1751411062101,5000.0,0.000171,2]
[368958656,1751411102717,334.0,0.000171,2]
[368958657,1751411107719,3537.69811528,0.000171,2]
[368958658,1751411107744,1462.30188472,0.000171,2]
[368958659,1751411122804,5000.0,0.000171,2]
[368958660,1751411139505,5000.0,0.000171,2]
[368958661,1751411153178,-246.26309525,0.00017144,2]
[368958662,1751411153200,-176.872993,0.00017154,2]
[368958663,1751411153222,-590.0102824,0.00017243,2]
[368958664,1751411158345,-85.40758744,0.00017243,2]
[368958665,1751411158366,-151.0,0.00017244,2]
[368958666,1751411158387,-300.0,0.00017251,2]
[368958667,1751411158411,-300.0,0.00017251,2]
[368958668,1751411158436,-300.0,0.00017251,2]
[368958669,1751411158459,-1104.48403596,0.00017251,2]
[368958670,1751411171828,5000.0,0.000171,2]
[368958671,1751411187707,3537.69811528,0.000171,2]
[368958672,1751411187732,1462.30188472,0.000171,2]
[368958673,1751411202917,5000.0,0.000171,2]
[368958674,1751411226099,-95.51596404,0.00017251,2]
[368958675,1751411226120,-1200.0,0.00017251,2]
[368958676,1751411226142,-538.55624382,0.00017252,2]
[368958677,1751411231088,-24.51883918,0.00017252,2]
[368958678,1751411231110,-369.59778965,0.00017252,2]
[368958679,1751411231133,-460.0,0.00017252,2]
[368958680,1751411231155,-500.0,0.00017252,2]
[368958681,1751411231178,-221.70073535,0.00017252,2]
[368958682,1751411231201,-414.56775599,0.00017252,2]
[368958683,1751411231225,-500.0,0.00017252,2]
[368958684,1751411231247,-500.0,0.00017252,2]
[368958685,1751411231271,-225.14760125,0.00017252,2]
[368958686,1751411231292,-135.82541444,0.00017252,2]
[368958687,1751411233476,5000.0,0.000171,2]
[368958688,1751411248706,5000.0,0.000171,2]
[368958689,1751411264311,3537.69811528,0.000171,2]
[368958690,1751411264335,1462.30188472,0.000171,2]
[368958691,1751411292089,244.267594,0.00016368,2]
[368958692,1751411297538,5000.0,0.000171,2]
[368958693,1751411312755,5000.0,0.000171,2]
[368958694,1751411328346,5000.0,0.000171,2]
[368958695,1751411358870,3293.43052128,0.000171,2]
[368958696,1751411358897,1706.56947872,0.000171,2]
[368958719,1751411432153,-173.82402911,0.00017153,2]
[368958720,1751411432163,-300.0,0.00017251,2]
[368958721,1751411432172,-0.05446557,0.00017251,2]
[368958722,1751411432185,-299.94553443,0.00017251,2]
[368958723,1751411432195,-1200.0,0.00017251,2]
[368958724,1751411432204,-70.74192209,0.00017252,2]
[368958725,1751411432214,-460.0,0.00017252,2]
[368958726,1751411432224,-460.0,0.00017252,2]
[368958727,1751411432233,-460.0,0.00017252,2]
[368958728,1751411432243,-460.0,0.00017252,2]
[368958729,1751411432252,-460.0,0.00017252,2]
[368958730,1751411432261,-460.0,0.00017252,2]
[368958731,1751411432271,-460.0,0.00017252,2]
[368958732,1751411432280,-430.4361999,0.00017252,2]
[368958733,1751411432290,-460.0,0.00017252,2]
[368958734,1751411432299,-460.0,0.00017252,2]
[368958735,1751411432308,-460.0,0.00017252,2]
[368958736,1751411432318,-182.77907078,0.00017252,2]
[368958737,1751411432330,-277.22092922,0.00017252,2]
[368958738,1751411432339,-162.34407078,0.00017252,2]
[368958739,1751411432350,-297.65592922,0.00017252,2]
[368958740,1751411432360,-460.0,0.00017252,2]
[368958741,1751411432369,-170.1595438,0.00017252,2]
[368958742,1751411432378,-460.0,0.00017252,2]
[368958743,1751411432387,-4359.04163032,0.00017253,2]
[368958744,1751411432397,-460.0,0.00017253,2]
[368958746,1751411432406,-460.0,0.00017253,2]
[368958747,1751411432416,-460.0,0.00017253,2]
[368958748,1751411432426,-460.0,0.00017253,2]
[368958749,1751411432435,-460.0,0.00017253,2]
[368958750,1751411432445,-460.0,0.00017253,2]
[368958751,1751411432454,-37.68746103,0.00017253,2]
[368958752,1751411432465,-427.18215876,0.00017253,2]
[368958753,1751411432475,-458.3906624,0.00017253,2]
[368958754,1751411432484,-460.0,0.00017253,2]
[368958755,1751411432493,-460.0,0.00017253,2]
[368958756,1751411432505,-443.19302072,0.00017253,2]
[368958757,1751411432516,-601.1010107,0.00017253,2]
[368958758,1751411432525,-460.0,0.00017253,2]
[368958759,1751411432535,-460.0,0.00017253,2]
[368958760,1751411432544,-460.0,0.00017253,2]
[368958761,1751411432554,-460.0,0.00017253,2]
[368958762,1751411432563,-460.0,0.00017253,2]
[368958763,1751411432573,-460.0,0.00017253,2]
[368958764,1751411432584,-460.0,0.00017253,2]
[368958765,1751411432594,-590.36755974,0.00017253,2]
[368958766,1751411432604,-460.0,0.00017253,2]
[368958767,1751411432613,-460.0,0.00017253,2]
[368958768,1751411432623,-398.10576102,0.00017253,2]
[368958769,1751411432632,-460.0,0.00017253,2]
[368958770,1751411432642,-460.0,0.00017253,2]
[368958771,1751411432651,-460.0,0.00017253,2]
[368958772,1751411432660,-460.0,0.00017253,2]
[368958773,1751411432670,-460.0,0.00017253,2]
[368958774,1751411432680,-460.0,0.00017253,2]
[368958775,1751411432689,-460.0,0.00017253,2]
[368958776,1751411432699,-460.0,0.00017253,2]
[368958777,1751411432708,-460.0,0.00017253,2]
[368958778,1751411432717,-460.0,0.00017253,2]
[368958779,1751411432727,-460.0,0.00017253,2]
[368958780,1751411432736,-460.0,0.00017253,2]
[368958781,1751411432747,-460.0,0.00017253,2]
[368958782,1751411432756,-460.0,0.00017253,2]
[368958783,1751411432766,-460.0,0.00017253,2]
[368958784,1751411432775,-460.0,0.00017253,2]
[368958785,1751411432786,-460.0,0.00017253,2]
[368958786,1751411432795,-445.18,0.00017253,2]
[368958787,1751411432805,-460.0,0.00017253,2]
[368958788,1751411432814,-460.0,0.00017253,2]
[368958789,1751411432824,-460.0,0.00017253,2]
[368958790,1751411432834,-460.0,0.00017253,2]
[368958791,1751411432844,-460.0,0.00017253,2]
[368958792,1751411432854,-460.0,0.00017253,2]
[368958793,1751411432863,-460.0,0.00017253,2]
[368958794,1751411432873,-460.0,0.00017253,2]
[368958795,1751411432882,-460.0,0.00017253,2]
[368958796,1751411432893,-460.0,0.00017253,2]
[368958797,1751411432903,-460.0,0.00017253,2]
[368958798,1751411432912,-460.0,0.00017253,2]
[368958799,1751411432922,-460.0,0.00017253,2]
[368958800,1751411432933,-460.0,0.00017253,2]
[368958801,1751411432943,-460.0,0.00017253,2]
[368958802,1751411432952,-460.0,0.00017253,2]
[368958803,1751411432962,-460.0,0.00017253,2]
[368958804,1751411432971,-409.21266774,0.00017253,2]
[368958805,1751411432980,-460.0,0.00017253,2]
[368958806,1751411432991,-460.0,0.00017253,2]
[368958807,1751411433000,-460.0,0.00017253,2]
[368958808,1751411433010,-460.0,0.00017253,2]
[368958809,1751411433019,-460.0,0.00017253,2]
[368958810,1751411433029,-460.0,0.00017253,2]
[368958811,1751411433039,-460.0,0.00017253,2]
[368958812,1751411433049,-460.0,0.00017253,2]
[368958813,1751411433059,-460.0,0.00017253,2]
[368958814,1751411433069,-460.0,0.00017253,2]
[368958815,1751411433078,-460.0,0.00017253,2]
[368958816,1751411433088,-460.0,0.00017253,2]
[368958817,1751411433098,-460.0,0.00017253,2]
[368958818,1751411433107,-460.0,0.00017253,2]
[368958819,1751411433117,-460.0,0.00017254,2]
[368958820,1751411433127,-460.0,0.00017254,2]
[368958821,1751411433136,-163.41295864,0.00017254,2]
[368958822,1751411433146,-460.0,0.00017254,2]
[368958823,1751411433156,-264.9,0.00017254,2]
[368958824,1751411433165,-460.0,0.00017254,2]
[368958825,1751411433175,-540.0,0.00017254,2]
[368958826,1751411433185,-460.0,0.00017254,2]
[368958827,1751411433194,-460.0,0.00017254,2]
[368958828,1751411433207,-460.0,0.00017254,2]
[368958829,1751411433216,-460.0,0.00017254,2]
[368958830,1751411433225,-460.0,0.00017254,2]
[368958831,1751411433236,-460.0,0.00017254,2]
[368958832,1751411433246,-460.0,0.00017254,2]